Cogmind - Beta 10.2 @@@ ROGUE MODE // 2021.09.11 @ 17:12:22 Player: John_Oxford Result: Destroyed by G-47 Trooper with Particle Gun Performance ------------- Evolutions (2) 1000 Regions Visited (5) 1000 Robots Destroyed (45) 225 Value Destroyed (1400) 1400 Prototype IDs (2) 40 Alien Tech Used (0) 0 Bonus (213) 213 TOTAL SCORE: 3878 Bonus ------- High Alert Combat Kills 13 Entered Garrisons 200 Cogmind --------- Core Integrity 0/550 Matter 11/300 Energy 90/100 System Corruption 5% Temperature Cool (27) Movement Core (700) Ox13 Location -8/Garrison Parts ------- > --- POWER (1) -------- (None) > --- PROPULSION (4) --- (None) > --- UTILITY (4) ------ High-capacity Storage Unit ECM Suite Improved Weapon Shielding > --- WEAPON (2) ------- Advanced Assault Cannon > --- INVENTORY (12) --- Compact Matter Pod (36) Advanced Signal Interpreter Core Analyzer Hardlight Generator Long-range Tractor Beam Advanced Assault Cannon Grenade Launcher Peak State ------------ > --- POWER ------------ Deuterium Engine > --- PROPULSION ------- Light Treads Improved Treads Armored Treads Advanced Treads > --- UTILITY ---------- High-capacity Storage Unit Compact Battery ECM Suite Hardened Light Armor Plating > --- WEAPON ----------- Advanced Assault Cannon Advanced Assault Cannon > --- INVENTORY -------- Nuclear Core Light Nuclear Core Compact Matter Pod Advanced Sensor Array Advanced Signal Interpreter Core Analyzer Improved Weapon Shielding Hardlight Generator Long-range Tractor Beam Advanced Assault Cannon Advanced Assault Cannon Grenade Launcher [Rating: 30] Favorites ----------- Power Ion Engine Engine Ion Engine Power Core Light Nuclear Core Propulsion Light Treads Treads Light Treads Leg Aluminum Leg Utility High-capacity Storage Unit Device ECM Suite Storage High-capacity Storage Unit Processor Visual Processing Unit Protection Hardened Light Armor Plating Weapon Grenade Launcher Energy Gun Medium Laser Energy Cannon Advanced Beam Cannon Ballistic Gun Light Assault Rifle Ballistic Cannon Advanced Assault Cannon Launcher Grenade Launcher Build | -11 -10 -9 -8 -8 -8 ------- Run | Scr Mat Mat Mat Sto Gar Slots Evolved 4 | . . 2 2 . . Power . | . . . . . . Propulsion 2 | . . 2 . . . Utility 2 | . . . 2 . . Weapon . | . . . . . . Parts Attached 42 | 7 7 9 8 . 11 Power 5 | . 2 . 1 . 2 Engine 3 | . 2 . 1 . . Core 2 | . . . . . 2 Reactor . | . . . . . . Propulsion 15 | 3 2 5 2 . 3 Treads 13 | 1 2 5 2 . 3 Leg 2 | 2 . . . . . Wheel . | . . . . . . Hover . | . . . . . . Flight . | . . . . . . Utility 10 | 1 1 1 2 . 5 Device 3 | . . . 1 . 2 Storage 4 | 1 1 1 . . 1 Processor 1 | . . . 1 . . Hackware . | . . . . . . Protection 2 | . . . . . 2 Artifact . | . . . . . . Weapon 12 | 3 2 3 3 . 1 Energy Gun 3 | 2 1 . . . . Energy Cannon 1 | . . 1 . . . Ballistic Gun 2 | 1 . . 1 . . Ballistic Cannon 3 | . . . 2 . 1 Launcher 3 | . 1 2 . . . Special Weapon . | . . . . . . Impact Weapon . | . . . . . . Slashing Weapon . | . . . . . . Piercing Weapon . | . . . . . . Special Melee Weapon . | . . . . . . Unidentified Prototypes 2 | . . 1 1 . . Parts Lost 17 | . 3 . 1 . 13 Power 3 | . 1 . . . 2 Propulsion 6 | . 1 . . . 5 Utility 4 | . . . . . 4 Weapon 4 | . 1 . 1 . 2 Highest Loss Streak 12 | . 3 . 1 . 12 Average Slot Usage (%) 93 | . 78 99 99 100 95 Engine 9 | . 11 11 9 9 4 Treads 32 | . 14 43 36 36 33 Leg 2 | . 11 . . . . Device 4 | . . . 8 9 11 Storage 17 | . 14 21 18 18 15 Processor 2 | . . . 9 9 . Protection 1 | . . . . . 8 Energy Gun 5 | . 12 6 . . . Energy Cannon 1 | . . 3 . . . Ballistic Gun 1 | . 6 . . . . Ballistic Cannon 5 | . . . 8 18 17 Launcher 7 | . 7 11 9 . . Naked Turns . | . . . . . . Heaviest Build 65 | 7 42 47 60 60 65 Greatest Support 85 | 20 40 83 85 85 85 Greatest Overweight (x) 16 | 1 3 1 . . 16 Average Overweight (x) . | . 1 . . . . Largest Inventory Capacity 14 | 6 14 12 12 12 12 Average Capacity 11 | 5 11 12 12 12 12 Most Carried 12 | 6 11 12 12 12 12 Average Carried 9 | 5 6 10 11 12 11 Final Capacity 12 | 6 12 12 12 12 12 Final Carried 12 | 6 7 12 12 12 7 Class Distribution -------------------- 100% | Mutant Dominant Class ---------------- Mutant | -10/Materials Mutant | -9/Materials Mutant | -8/Materials Mutant | -8/Storage Mutant | -8/Garrison Resources | -11 -10 -9 -8 -8 -8 ----------- Run | Scr Mat Mat Mat Sto Gar Matter Collected 1247 | 160 108 292 321 . 366 Remotely . | . . . . . . Salvage Created 1227 | . 167 440 356 . 264 Parts 83 | . 13 35 25 . 10 Haulers Intercepted 1 | . . 1 . . . Recyclers Shooed 4 | . 2 . 2 . . Parts Field Recycled . | . . . . . . Retrieved Matter . | . . . . . . Parts Self-Destructed . | . . . . . . Prevented . | . . . . . . Kills | -11 -10 -9 -8 -8 -8 ------- Run | Scr Mat Mat Mat Sto Gar Combat Hostiles Destroyed 35 | . 5 12 10 . 8 Guns 6 | . 5 1 . . . Cannons 15 | . . 1 6 . 8 AOE 14 | . . 10 4 . . Classes Destroyed 10 | . 3 4 1 . 2 Worker 2 | . . 2 . . . Builder 2 | . . 2 . . . Hauler 1 | . . 1 . . . Recycler 1 | . . . 1 . . Watcher 4 | . 1 1 2 . . Swarmer 9 | . 3 3 3 . . Grunt 17 | . 2 5 5 . 5 Brawler 1 | . . . . . 1 Duelist 1 | . . . . . 1 Sentry 7 | . . 4 2 . 1 Best Kill Streak 6 | . 3 6 5 . 3 Combat Bots Only 4 | . 3 4 3 . 3 Max Kills in Single Turn 5 | . 1 5 2 . 2 Gunslinging . | . . . . . . Exploded 3 | . . 3 1 . . Melee . | . . . . . . Uniques/NPCs Destroyed . | . . . . . . Combat | -11 -10 -9 -8 -8 -8 -------- Run | Scr Mat Mat Mat Sto Gar Damage Taken 3638 | . 540 338 463 . 2297 Core 723 | . 142 23 36 . 522 Absorbed by Shields . | . . . . . . Core Remaining (%) 79 | 100 43 94 . . . Volleys Fired 120 | . 34 25 24 . 37 Largest 2 | . 2 2 2 . 2 Hottest 118 | . 80 118 96 . 96 Shots Fired 209 | . 46 49 40 . 74 Gun 60 | . 43 17 . . . Cannon 119 | . . 15 30 . 74 Launcher 30 | . 3 17 10 . . Special . | . . . . . . Kinetic 133 | . 29 . 30 . 74 Thermal 46 | . 14 32 . . . Explosive 30 | . 3 17 10 . . Electromagnetic . | . . . . . . Robot Hit Streak 16 | . 6 9 16 . 15 Robot Miss Streak 5 | . 2 2 5 . 2 Penetration Max . | . . . . . . Secondary Targets . | . . . . . . Shots Hit Robots 132 | . 27 27 25 . 53 Core Hits 92 | . 15 32 29 . 16 Critical Hits 6 | . 1 3 . . 2 Critical Kills . | . . . . . . Critical Parts Destroyed 6 | . 1 3 . . 2 Melee Attacks . | . . . . . . Impact . | . . . . . . Slashing . | . . . . . . Piercing . | . . . . . . Sneak Attacks . | . . . . . . Combat Hostiles . | . . . . . . Follow-up Attacks . | . . . . . . Damage Inflicted 3812 | . 375 1087 1163 . 1187 Guns 456 | . 305 151 . . . Cannons 1954 | . . 165 602 . 1187 Explosions 1402 | . 70 771 561 . . Melee . | . . . . . . Ramming . | . . . . . . Kinetic 1980 | . 191 . 602 . 1187 Thermal 430 | . 114 316 . . . Explosive 1402 | . 70 771 561 . . Electromagnetic . | . . . . . . Impact . | . . . . . . Slashing . | . . . . . . Piercing . | . . . . . . Highest Corruption 5 | . . . . . 5 Average Corruption 5 | . . . . . 5 Corruption Purged . | . . . . . . Effects 10 | . . . . . 10 Message Errors 1 | . . . . . 1 Matter Fused 2 | . . . . . 2 Energy Discharges 1 | . . . . . 1 Parts Rejected 1 | . . . . . 1 Data Loss (major) 1 | . . . . . 1 Misfires 2 | . . . . . 2 Weapon Failures 2 | . . . . . 2 Overload Shots . | . . . . . . Overflow Damage 92 | . 1 11 78 . 2 Projectiles 31 | . . . 29 . 2 Explosions 61 | . 1 11 49 . . Melee . | . . . . . . Knockbacks 25 | . . . 6 . 19 Impact . | . . . . . . Kinetic 21 | . . . 6 . 15 Secondary 4 | . . . . . 4 Self-Inflicted Damage 97 | . 29 29 39 . . Shots 4 | . 1 1 2 . . Rammed . | . . . . . . Targets Rammed . | . . . . . . Kicked . | . . . . . . Crushed . | . . . . . . Highest Temperature 372 | . 95 268 349 . 372 Average Temperature 88 | . 27 101 56 . 118 Received Heat Transfer 1281 | . 147 81 162 . 891 Effects 2 | . . . . . 2 Energy Bleed 2 | . . . . . 2 Siege Activations . | . . . . . . Robots Corrupted . | . . . . . . Combat Hostiles . | . . . . . . Parts Fried . | . . . . . . Impact Corruptions . | . . . . . . Robots Melted . | . . . . . . Combat Hostiles . | . . . . . . Parts Melted . | . . . . . . Heat Transferred 1073 | . 333 740 . . . Parts Sabotaged . | . . . . . . Parts Stolen . | . . . . . . Parts Stripped . | . . . . . . Power Chain Reactions . | . . . . . . Missiles Intercepted . | . . . . . . Alert | -11 -10 -9 -8 -8 -8 ------- Run | Scr Mat Mat Mat Sto Gar Peak Influence 489 | . 127 382 434 169 489 Initial 169 | . . 5 97 169 109 Average 141 | . 48 124 230 169 225 Maximum Alert Level 2 | . . 1 2 . 2 Low Security (%) 74 | 100 100 71 50 100 67 Level 1 19 | . . 28 32 . 21 Level 2 5 | . . . 17 . 11 Level 3 . | . . . . . . Level 4 . | . . . . . . Level 5 . | . . . . . . High Security . | . . . . . . Max Security . | . . . . . . Squads Dispatched 3 | . . 2 1 . . Investigation . | . . . . . . Extermination . | . . . . . . Reinforcement 3 | . . 2 1 . . Assault . | . . . . . . Garrison . | . . . . . . Intercept . | . . . . . . Construction Impeded . | . . . . . . Haulers Reinforced . | . . . . . . Stealth | -11 -10 -9 -8 -8 -8 --------- Run | Scr Mat Mat Mat Sto Gar Distress Signals 7 | . 3 3 1 . . Communications Jammed . | . . . . . . Distress Signals . | . . . . . . Times Spotted 79 | . 9 24 19 . 27 Peak Tracking Total 10 | . 6 5 4 . 10 Tactical Retreats 11 | . 1 . 4 . 6 Traps | -11 -10 -9 -8 -8 -8 ------- Run | Scr Mat Mat Mat Sto Gar Traps Triggered 3 | . 1 1 . . 1 Indirectly . | . . . . . . Trap Hack Attempts . | . . . . . . Triggered . | . . . . . . Disarmed . | . . . . . . Reprogrammed . | . . . . . . Reused . | . . . . . . Traps Extracted . | . . . . . . Installed . | . . . . . . Triggered . | . . . . . . Machines | -11 -10 -9 -8 -8 -8 ---------- Run | Scr Mat Mat Mat Sto Gar Machines Disabled 7 | . . 4 2 . 1 Max in Single Turn 2 | . . 1 2 . 1 Machines Sabotaged . | . . . . . . Garrisons Compromised . | . . . . . . Overloaded Fab Kills . | . . . . . . Fab Network Shutdowns . | . . . . . . Hacking | -11 -10 -9 -8 -8 -8 --------- Run | Scr Mat Mat Mat Sto Gar Machines Accessed 3 | . 2 . . 1 . Terminals 2 | . 2 . . . . Fabricators . | . . . . . . Repair Stations . | . . . . . . Recycling Units . | . . . . . . Scanalyzers . | . . . . . . Garrison Access 1 | . . . . 1 . Total Hacks 8 | . 7 . . 1 . Successful 2 | . 1 . . 1 . Failed 6 | . 6 . . . . Catastrophic 1 | . 1 . . . . Database Lockouts . | . . . . . . Manual . | . . . . . . Terminals 7 | . 7 . . . . Fabricators . | . . . . . . Repair Stations . | . . . . . . Recycling Units . | . . . . . . Scanalyzers . | . . . . . . Garrison Access 1 | . . . . 1 . Terminal Hacks 1 | . 1 . . . . Locate Traps 1 | . 1 . . . . Fabricator Hacks . | . . . . . . Repair Station Hacks . | . . . . . . Recycling Unit Hacks . | . . . . . . Scanalyzer . | . . . . . . Garrison Access Hacks 1 | . . . . 1 . Unlock Access 1 | . . . . 1 . Unauthorized Hacks . | . . . . . . Terminals . | . . . . . . Fabricators . | . . . . . . Repair Stations . | . . . . . . Recycling Units . | . . . . . . Scanalyzers . | . . . . . . Garrison Access . | . . . . . . Data Cores Recovered . | . . . . . . Used . | . . . . . . Hacking Detections 1 | . 1 . . . . Full Trace Events . | . . . . . . Feedback Events . | . . . . . . Feedback Blocked . | . . . . . . Robot Schematics Acquired . | . . . . . . Robots Built . | . . . . . . Matter . | . . . . . . Time . | . . . . . . Total Robot Build Rating . | . . . . . . Part Schematics Acquired . | . . . . . . Parts Built . | . . . . . . Matter . | . . . . . . Time . | . . . . . . Total Part Build Rating . | . . . . . . Parts Repaired . | . . . . . . Time . | . . . . . . Parts Recycled . | . . . . . . Recycled Matter . | . . . . . . Retrieved Matter . | . . . . . . Retrieved Components . | . . . . . . Parts Scanalyzed . | . . . . . . Part Schematics Acquired . | . . . . . . Parts Damaged . | . . . . . . Bothacking | -11 -10 -9 -8 -8 -8 ------------ Run | Scr Mat Mat Mat Sto Gar Used RIF Installer . | . . . . . . Robots Hacked . | . . . . . . Non-combat . | . . . . . . Combat . | . . . . . . Robot Hacks Applied . | . . . . . . Relay Couplers Released . | . . . . . . Robots Rewired . | . . . . . . Allies Hacked . | . . . . . . Hacks Repelled . | . . . . . . Allies | -11 -10 -9 -8 -8 -8 -------- Run | Scr Mat Mat Mat Sto Gar Total Allies . | . . . . . . Largest Group . | . . . . . . Highest-Rated Group . | . . . . . . Highest-Rated Ally . | . . . . . . Total Orders . | . . . . . . Ally Attacks . | . . . . . . Total Damage . | . . . . . . Kills . | . . . . . . Allies Corrupted . | . . . . . . Allies Melted . | . . . . . . Intel | -11 -10 -9 -8 -8 -8 ------- Run | Scr Mat Mat Mat Sto Gar Robot Analysis Total . | . . . . . . Derelict Logs Recovered . | . . . . . . Drone Launches . | . . . . . . Drone Recoveries . | . . . . . . Exploration | -11 -10 -9 -8 -8 -8 ------------- Run | Scr Mat Mat Mat Sto Gar Turns Passed 2548 | 95 614 849 518 27 445 Spaces Moved 1308 | 68 297 466 269 18 190 Core 12 | 10 . . . . 2 Treads 1105 | 3 161 466 269 18 188 Legs 191 | 55 136 . . . . Wheels . | . . . . . . Hover . | . . . . . . Flight . | . . . . . . Fastest Speed 50 | 50 120 160 156 158 155 Average Speed 160 | 113 170 160 158 158 164 Slowest Speed 850 | 160 210 180 160 158 850 Overloaded Moves . | . . . . . . Propulsion Burnouts . | . . . . . . Robots Hopped . | . . . . . . Cave-ins Triggered . | . . . . . . Exploration Rate (%) 26 | 4 49 43 25 6 30 Regions Visited 5 Branch Regions 1 Pre-discovered Areas . | . . . . . . Known Exits Taken 1 | . . . . 1 . Unknown Exits Taken 4 | 1 1 1 1 . . Scrap Searched . | . . . . . . Spaces Dug . | . . . . . . Terrain Destroyed 176 | . 11 100 65 . . Melee . | . . . . . . Projectile 6 | . . . 6 . . AOE 170 | . 11 100 59 . . Terrain Rammed . | . . . . . . Walls Destroyed . | . . . . . . Machines Disabled . | . . . . . . Actions | -11 -10 -9 -8 -8 -8 --------- Run | Scr Mat Mat Mat Sto Gar Total 1570 | 84 365 523 329 17 252 Wait 27 | . 17 2 . . 8 Move 1303 | 67 296 465 268 17 190 Hop . | . . . . . . Pick Up 48 | 8 8 15 14 . 3 Fast Attach 8 | 5 . . 1 . 2 Attach 28 | 2 7 8 4 . 7 Detach 1 | . . 1 . . . Swap 6 | . . 1 3 . 2 Drop 29 | 2 3 6 15 . 3 Fire 120 | . 34 25 24 . 37 Melee . | . . . . . . Ram . | . . . . . . Kick . | . . . . . . Crush . | . . . . . . Escape Stasis . | . . . . . . Rewire . | . . . . . . Trap . | . . . . . . Miscellaneous . | . . . . . . Route ------- -11/Scrapyard -10/Materials (discovered 2 exits: *Mat / [*Min]) -9/Materials (discovered 2 exits: [*Mat] / [*Min]) -8/Materials -8/Storage -8/Garrison History --------- Turn | Location | Event 17 | -11/Scrapyard | Discovered new exit (range 15) 96 | -11/Scrapyard | Entered Materials 308 | -10/Materials | Build established: Mutant 314 | -10/Materials | Discovered new exit (range 13) 323 | -10/Materials | Lost 3 parts (1p1n1w) 442 | -10/Materials | Discovered new exit (range 9) 616 | -10/Materials | Core integrity fell below 50% 710 | -10/Materials | Entered another Materials area 710 | -9/Materials | Evolved 2 slots: Propulsion x2 1169 | -9/Materials | Discovered new exit (range 16) 1525 | -9/Materials | Discovered new exit (range 13) 1559 | -9/Materials | Entered another Materials area 1559 | -8/Materials | Evolved 2 slots: Utility x2 1954 | -8/Materials | Discovered new exit (range 6) 2077 | -8/Materials | Entered Storage 2103 | -8/Storage | Identified exit to Garrison 2104 | -8/Storage | Entered Garrison 2120 | -8/Garrison | Triggered checkpoint 2322 | -8/Garrison | Triggered checkpoint 2478 | -8/Garrison | Triggered checkpoint 2535 | -8/Garrison | Core integrity fell below 50% 2542 | -8/Garrison | Core integrity fell below 20% 2549 | -8/Garrison | Destroyed by G-47 Trooper with Particle Gun Last Messages --------------- 02512_ Arm. Treads destroyed. 02518_ Slug penetrates Wall. 02519_ Acquired 6 matter. 02522_ Slug penetrates Reinforced Barrier. 02524_ Imp. Heat Sink destroyed. 02525_ Penetrated by Slug. 02527_ Lgt. Treads destroyed. 02528_ Penetrated by Slug. 02528_ Lgt. Treads destroyed. 02530_ Hrd. Light Armor Plating destroyed. 02530_ Adv. Assault Cannon destroyed. 02531_ Lgt. Nuclear Core destroyed. 02531_ Adv. Assault Cannon destroyed. 02534_ Adv. Treads destroyed. 02534_ Penetrated by Slug. 02542_ #EI:4IK6AJI,LR/50LDWJ>M>